fUSD/lending_fUSD_20241219
["ID","MTS","AMOUNT","RATE_DAILY","PERIOD"]
[345996492,1734617446761,-500.0,0.00021917,4]
[345996493,1734617446769,-500.0,0.00021917,4]
[345996494,1734617446779,-500.0,0.00021917,4]
[345996495,1734617446788,-162.97845884,0.00021917,4]
[345996496,1734617446797,-500.0,0.00021917,4]
[345996497,1734617446806,-262.03541035,0.00021917,4]
[345996498,1734617446815,-500.0,0.00021917,4]
[345996499,1734617446824,-500.0,0.00021917,4]
[345996500,1734617446833,-200.0,0.00021917,4]
[345996501,1734617446841,-277.27380057,0.00021917,4]
[345996502,1734617446851,-500.0,0.00021917,4]
[345996503,1734617446860,-500.0,0.00021917,4]
[345996504,1734617446868,-500.0,0.00021917,4]
[345996505,1734617446878,-500.0,0.00021917,4]
[345996506,1734617446887,-500.0,0.00021917,4]
[345996507,1734617446895,-500.0,0.00021917,4]
[345996508,1734617446905,-500.0,0.00021917,4]
[345996509,1734617446914,-500.0,0.00021917,4]
[345996510,1734617446923,-500.91,0.00021917,4]
[345996511,1734617446932,-500.0,0.00021917,4]
[345996513,1734617446941,-500.0,0.00021917,4]
[345996514,1734617446951,-500.0,0.00021917,4]
[345996515,1734617446959,-186.70935046,0.00021917,4]
[345996516,1734617446969,-500.0,0.00021917,4]
[345996517,1734617446978,-500.0,0.00021917,4]
[345996518,1734617446987,-500.0,0.00021917,4]
[345996519,1734617446996,-500.0,0.00021917,4]
[345996520,1734617447008,-500.0,0.00021917,4]
[345996521,1734617447020,-502.38690125,0.00021917,4]
[345996522,1734617447029,-500.0,0.00021917,4]
[345996523,1734617447038,-500.0,0.00021917,4]
[345996524,1734617447048,-505.38306654,0.00021917,4]
[345996525,1734617447057,-500.0,0.00021917,4]
[345996526,1734617447066,-500.0,0.00021917,4]
[345996527,1734617447075,-500.0,0.00021917,4]
[345996528,1734617447084,-500.0,0.00021917,4]
[345996529,1734617447093,-500.0,0.00021917,4]
[345996530,1734617447103,-500.0,0.00021917,4]
[345996531,1734617447112,-503.52627372,0.00021917,4]
[345996532,1734617447121,-500.0,0.00021917,4]
[345996533,1734617447131,-500.0,0.00021917,4]
[345996534,1734617447140,-500.0,0.00021917,4]
[345996535,1734617447149,-500.0,0.00021917,4]
[345996536,1734617447159,-500.0,0.00021917,4]
[345996537,1734617447168,-500.0,0.00021917,4]
[345996538,1734617447177,-500.0,0.00021917,4]
[345996539,1734617447187,-500.0,0.00021917,4]
[345996540,1734617447196,-500.0,0.00021917,4]
[345996541,1734617447205,-500.0,0.00021917,4]
[345996542,1734617447215,-501.90695962,0.00021917,4]
[345996543,1734617447225,-500.0,0.00021917,4]
[345996544,1734617447234,-500.0,0.00021917,4]
[345996545,1734617447243,-500.0,0.00021917,4]
[345996546,1734617447254,-500.0,0.00021917,4]
[345996547,1734617447263,-504.8034016,0.00021917,4]
[345996548,1734617447273,-500.0,0.00021917,4]
[345996549,1734617447282,-500.0,0.00021917,4]
[345996550,1734617447292,-500.0,0.00021917,4]
[345996551,1734617447302,-501.46357423,0.00021917,4]
[345996552,1734617447311,-500.0,0.00021917,4]
[345996553,1734617447321,-150.74880375,0.00021917,4]
[345996554,1734617447330,-505.93229543,0.00021917,4]
[345996555,1734617447339,-500.0,0.00021917,4]
[345996556,1734617447349,-500.0,0.00021917,4]
[345996557,1734617447358,-500.0,0.00021917,4]
[345996558,1734617447367,-502.70159642,0.00021917,4]
[345996559,1734617447377,-501.88291038,0.00021917,4]
[345996560,1734617447387,-500.0,0.00021917,4]
[345996561,1734617447396,-500.0,0.00021917,4]
[345996562,1734617447406,-501.1194962,0.00021917,4]
[345996563,1734617447416,-502.41666025,0.00021917,4]
[345996564,1734617447425,-500.0,0.00021917,4]
[345996565,1734617447435,-500.0,0.00021917,4]
[345996566,1734617447445,-626.36045378,0.00021917,4]
[345996567,1734617447454,-500.0,0.00021917,4]
[345996568,1734617447464,-500.0,0.00021917,4]
[345996569,1734617447473,-500.0,0.00021917,4]
[345996570,1734617447482,-501.9941592,0.00021917,4]
[345996571,1734617447491,-500.0,0.00021917,4]
[345996572,1734617447500,-500.0,0.00021917,4]
[345996573,1734617447511,-500.0,0.00021917,4]
[345996574,1734617447520,-500.0,0.00021917,4]
[345996575,1734617447529,-500.0,0.00021917,4]
[345996576,1734617447538,-500.0,0.00021917,4]
[345996577,1734617447547,-500.0,0.00021917,4]
[345996578,1734617447557,-500.0,0.00021917,4]
[345996579,1734617447566,-500.0,0.00021917,4]
[345996580,1734617447575,-502.22983314,0.00021917,4]
[345996581,1734617447584,-500.0,0.00021917,4]
[345996582,1734617447593,-500.0,0.00021917,4]
[345996583,1734617447602,-500.0,0.00021917,4]
[345996584,1734617447611,-500.0,0.00021917,4]
[345996585,1734617447621,-500.0,0.00021917,4]
[345996586,1734617447629,-500.0,0.00021917,4]
[345996587,1734617447640,-500.0,0.00021917,4]
[345996588,1734617447650,-500.0,0.00021917,4]
[345996589,1734617447659,-500.0,0.00021917,4]
[345996590,1734617447668,-500.0,0.00021917,4]
[345996591,1734617447677,-500.0,0.00021917,4]
[345996592,1734617447686,-500.0,0.00021917,4]
[345996593,1734617447695,-298.71200102,0.00021917,4]
[345996594,1734617447705,-500.0,0.00021917,4]
[345996595,1734617447714,-500.0,0.00021917,4]
[345996596,1734617447723,-500.0,0.00021917,4]
[345996597,1734617447733,-500.0,0.00021917,4]
[345996598,1734617447742,-500.0,0.00021917,4]
[345996599,1734617447751,-604.16,0.00021917,4]
[345996600,1734617447761,-500.0,0.00021917,4]
[345996601,1734617447770,-501.0829022,0.00021917,4]
[345996602,1734617447779,-500.0,0.00021917,4]
[345996603,1734617447789,-500.0,0.00021917,4]
[345996604,1734617447798,-503.56079753,0.00021917,4]
[345996605,1734617447807,-500.0,0.00021917,4]
[345996606,1734617447816,-500.0,0.00021917,4]
[345996607,1734617447825,-500.0,0.00021917,4]
[345996608,1734617447834,-501.54291152,0.00021917,4]
[345996609,1734617447844,-500.0,0.00021917,4]
[345996610,1734617447853,-500.0,0.00021917,4]
[345996611,1734617447863,-500.0,0.00021917,4]
[345996612,1734617447872,-500.0,0.00021917,4]
[345996613,1734617447881,-500.0,0.00021917,4]
[345996614,1734617447891,-501.58244784,0.00021917,4]
[345996615,1734617447900,-500.0,0.00021917,4]
[345996616,1734617447909,-500.0,0.00021917,4]
[345996617,1734617447919,-500.0,0.00021917,4]
[345996618,1734617447928,-500.0,0.00021917,4]
[345996619,1734617447937,-500.0,0.00021917,4]
[345996620,1734617447946,-500.0,0.00021917,4]
[345996621,1734617447956,-214.2362329,0.00021917,4]
[345996622,1734617447966,-500.0,0.00021917,4]
[345996623,1734617447975,-500.0,0.00021917,4]
[345996624,1734617447985,-500.0,0.00021917,4]
[345996625,1734617447995,-440.47796937,0.00021917,4]
[345996626,1734617448004,-500.0,0.00021917,4]
[345996627,1734617448013,-500.0,0.00021917,4]
[345996628,1734617448023,-500.0,0.00021917,4]
[345996629,1734617448033,-436.91163969,0.00021917,4]
[345996630,1734617448043,-500.0,0.00021917,4]
[345996631,1734617448053,-500.0,0.00021917,4]
[345996632,1734617448063,-506.24559804,0.00021917,4]
[345996633,1734617448074,-500.0,0.00021917,4]
[345996634,1734617448084,-501.43798953,0.00021917,4]
[345996635,1734617448094,-503.50363038,0.00021917,4]
[345996636,1734617448104,-500.0,0.00021917,4]
[345996637,1734617448114,-500.0,0.00021917,4]
[345996638,1734617448125,-500.0,0.00021917,4]
[345996639,1734617448135,-500.0,0.00021917,4]
[345996640,1734617448144,-500.0,0.00021917,4]
[345996641,1734617448154,-503.81018042,0.00021917,4]
[345996642,1734617448164,-499.67642573,0.00021917,4]
[345996643,1734617448174,-500.0,0.00021917,4]
[345996644,1734617448184,-500.0,0.00021917,2]
[345996645,1734617448194,-500.0,0.00021917,4]
[345996646,1734617448204,-500.0,0.00021917,4]
[345996647,1734617448214,-500.78977273,0.00021917,4]
[345996648,1734617448224,-500.0,0.00021917,4]
[345996649,1734617448234,-500.0,0.00021917,4]
[345996650,1734617448244,-500.0,0.00021917,4]
[345996651,1734617448259,-500.0,0.00021917,4]
[345996652,1734617448269,-500.0,0.00021917,4]
[345996653,1734617448280,-984.51,0.00021917,4]
[345996654,1734617448290,-502.31124652,0.00021917,4]
[345996655,1734617448300,-500.0,0.00021917,4]
[345996656,1734617448310,-500.0,0.00021917,4]
[345996657,1734617448320,-501.88306706,0.00021917,4]
[345996658,1734617448330,-502.65868812,0.00021917,4]
[345996659,1734617448341,-500.0,0.00021917,4]
[345996660,1734617448351,-339.47651481,0.00021917,4]
[345996661,1734617448361,-500.0,0.00021917,4]
[345996662,1734617448371,-502.21872184,0.00021917,4]
[345996663,1734617448382,-500.0,0.00021917,4]
[345996664,1734617448393,-500.0,0.00021917,4]
[345996665,1734617448403,-500.0,0.00021917,4]
[345996666,1734617448414,-500.88557418,0.00021917,4]
[345996667,1734617448424,-500.0,0.00021917,4]
[345996668,1734617448435,-594.6,0.00021917,4]
[345996669,1734617448445,-500.0,0.00021917,4]
[345996670,1734617448456,-500.0,0.00021917,4]
[345996671,1734617448466,-500.0,0.00021917,4]
[345996672,1734617448476,-500.0,0.00021917,4]
[345996673,1734617448486,-502.55483371,0.00021917,4]
[345996674,1734617448496,-500.0,0.00021917,4]
[345996675,1734617448505,-500.0,0.00021917,4]
[345996676,1734617448515,-502.00289396,0.00021917,4]
[345996677,1734617448526,-500.0,0.00021917,4]
[345996678,1734617448536,-500.0,0.00021917,4]
[345996679,1734617448546,-500.0,0.00021917,4]
[345996680,1734617448556,-500.0,0.00021917,4]
[345996681,1734617448746,-500.0,0.00021917,4]
[345996682,1734617448758,-500.0,0.00021917,4]
[345996683,1734617448768,-657.46,0.00021917,4]
[345996684,1734617448779,-500.0,0.00021917,4]
[345996685,1734617448789,-500.0,0.00021917,4]
[345996686,1734617448799,-500.0,0.00021917,4]
[345996687,1734617448809,-293.97145523,0.00021917,4]
[345996688,1734617448818,-500.0,0.00021917,4]
[345996689,1734617448827,-599.48,0.00021917,4]
[345996690,1734617448837,-500.0,0.00021917,4]
[345996691,1734617448847,-500.0,0.00021917,4]
[345996692,1734617448857,-500.0,0.00021917,4]
[345996693,1734617448867,-500.0,0.00021917,4]
[345996694,1734617448877,-500.0,0.00021917,4]
[345996695,1734617448887,-501.28770427,0.00021917,4]
[345996696,1734617448897,-500.0,0.00021917,4]
[345996697,1734617448907,-565.17,0.00021917,4]
[345996698,1734617448916,-505.28781327,0.00021917,4]
[345996699,1734617448927,-500.0,0.00021917,4]
[345996700,1734617448936,-500.0,0.00021917,4]
[345996701,1734617448946,-500.0,0.00021917,4]
[345996702,1734617448955,-500.0,0.00021917,4]
[345996703,1734617448966,-500.0,0.00021917,4]
[345996704,1734617448976,-500.0,0.00021917,4]
[345996705,1734617448987,-500.0,0.00021917,4]
[345996706,1734617448996,-500.0,0.00021917,4]
[345996707,1734617449007,-502.19338532,0.00021917,4]
[345996708,1734617449017,-500.0,0.00021917,4]
[345996709,1734617449028,-500.0,0.00021917,4]
[345996710,1734617449037,-500.0,0.00021917,4]
[345996711,1734617449047,-500.0,0.00021917,4]
[345996712,1734617449056,-500.0,0.00021917,4]
[345996713,1734617449066,-500.0,0.00021917,4]
[345996714,1734617449075,-500.0,0.00021917,4]
[345996715,1734617449085,-501.83668048,0.00021917,4]
[345996716,1734617449095,-500.0,0.00021917,4]
[345996717,1734617449105,-500.0,0.00021917,4]
[345996718,1734617449115,-500.0,0.00021917,4]
[345996719,1734617449124,-500.0,0.00021917,4]
[345996720,1734617449134,-500.0,0.00021917,4]
[345996721,1734617449143,-500.0,0.00021917,4]
[345996722,1734617449152,-500.0,0.00021917,4]
[345996723,1734617449162,-500.0,0.00021917,4]
[345996724,1734617449172,-508.76289567,0.00021917,4]
[345996725,1734617449182,-500.0,0.00021917,4]
[345996726,1734617449192,-500.0,0.00021917,4]
[345996727,1734617449202,-504.92653428,0.00021917,4]
[345996728,1734617449212,-500.0,0.00021917,4]
[345996729,1734617449222,-500.0,0.00021917,4]
[345996730,1734617449232,-500.0,0.00021917,4]
[345996731,1734617449242,-500.0,0.00021917,4]
[345996732,1734617449253,-503.68970729,0.00021917,4]
[345996733,1734617449266,-500.0,0.00021917,4]
[345996734,1734617449275,-500.0,0.00021917,4]
[345996735,1734617449285,-500.0,0.00021917,4]
[345996736,1734617449295,-500.0,0.00021917,4]
[345996737,1734617449305,-500.0,0.00021917,4]
[345996738,1734617449315,-505.1176995,0.00021917,4]
[345996739,1734617449325,-500.0,0.00021917,4]
[345996740,1734617449335,-508.35571332,0.00021917,4]
[345996741,1734617449345,-500.0,0.00021917,4]
[345996742,1734617449355,-500.0,0.00021917,4]
[345996743,1734617449365,-500.0,0.00021917,4]
[345996744,1734617449375,-500.0,0.00021917,4]
[345996745,1734617449384,-500.0,0.00021917,4]
[345996746,1734617449394,-509.31586983,0.00021917,4]
[345996747,1734617449404,-500.0,0.00021917,4]
[345996748,1734617449413,-514.87369282,0.00021917,4]
[345996749,1734617449422,-601.43829302,0.00021917,4]
[345996750,1734617449432,-533.62858797,0.00021917,4]
[345996751,1734617449441,-510.23751886,0.00021917,4]
[345996752,1734617449450,-500.0,0.00021917,4]
[345996753,1734617449459,-500.0,0.00021917,4]
[345996754,1734617449469,-510.92288025,0.00021917,4]
[345996755,1734617449478,-500.0,0.00021917,4]
[345996756,1734617449488,-366.8919147,0.00021917,4]
[345996757,1734617449498,-505.70902544,0.00021917,4]
[345996758,1734617449510,-500.0,0.00021917,4]
[345996759,1734617449519,-224.32346614,0.00021917,4]
[345996760,1734617449529,-500.0,0.00021917,4]
[345996761,1734617449538,-500.0,0.00021917,4]
[345996762,1734617449549,-663.13,0.00021917,4]
[345996763,1734617449558,-500.0,0.00021917,4]
[345996764,1734617449568,-503.54138044,0.00021917,4]
[345996765,1734617449577,-500.0,0.00021917,4]
[345996766,1734617449586,-500.0,0.00021917,4]
[345996767,1734617449595,-500.0,0.00021917,4]
[345996768,1734617449605,-500.0,0.00021917,4]
[345996769,1734617449614,-503.34800825,0.00021917,4]
[345996770,1734617449623,-500.0,0.00021917,4]
[345996771,1734617449636,-500.0,0.00021917,4]
[345996772,1734617449647,-505.15349114,0.00021917,4]
[345996773,1734617449656,-500.0,0.00021917,4]
[345996774,1734617449665,-500.0,0.00021917,4]
[345996775,1734617449675,-512.6,0.00021917,4]
[345996776,1734617449686,-761.44,0.00021917,4]
[345996777,1734617449695,-500.0,0.00021917,4]
[345996778,1734617449704,-500.0,0.00021917,4]
[345996779,1734617449714,-500.0,0.00021917,4]
[345996780,1734617449723,-1565.46,0.00021917,4]
[345996781,1734617449732,-611.68924342,0.00021917,4]
[345996782,1734617449741,-500.0,0.00021917,4]
[345996783,1734617449750,-500.0,0.00021917,4]
[345996784,1734617449761,-984.4,0.00021917,4]
[345996785,1734617449770,-501.22774858,0.00021917,4]
[345996786,1734617449779,-500.0,0.00021917,4]
[345996787,1734617449789,-500.0,0.00021917,4]
[345996788,1734617449798,-507.25,0.00021917,4]
[345996789,1734617449807,-500.0,0.00021917,4]
[345996790,1734617449816,-500.0,0.00021917,4]
[345996791,1734617449826,-1479.96,0.00021917,4]
[345996792,1734617449836,-500.0,0.00021917,4]
[345996793,1734617449845,-500.86454632,0.00021917,4]
[345996794,1734617449854,-500.0,0.00021917,4]
[345996795,1734617449863,-502.20149151,0.00021917,4]
[345996796,1734617449873,-500.0,0.00021917,4]
[345996797,1734617449882,-500.0,0.00021917,4]
[345996798,1734617449891,-500.0,0.00021917,4]
[345996799,1734617449900,-500.0,0.00021917,4]
[345996800,1734617449909,-500.0,0.00021917,4]
[345996801,1734617449918,-500.0,0.00021917,4]
[345996802,1734617449927,-502.06882518,0.00021917,4]
[345996803,1734617449937,-500.0,0.00021917,4]
[345996804,1734617449946,-3009.61,0.00021917,4]
[345996805,1734617449955,-500.0,0.00021917,4]
[345996806,1734617449964,-500.0,0.00021917,4]
[345996807,1734617449973,-500.0,0.00021917,4]
[345996808,1734617449983,-500.0,0.00021917,4]
[345996809,1734617449993,-500.0,0.00021917,4]
[345996810,1734617450003,-500.0,0.00021917,4]
[345996811,1734617450016,-629.65499768,0.00021917,4]
[345996812,1734617450025,-500.0,0.00021917,4]
[345996813,1734617450035,-500.0,0.00021917,4]
[345996814,1734617450045,-502.20058275,0.00021917,4]
[345996815,1734617450055,-500.0,0.00021917,4]
[345996816,1734617450064,-500.0,0.00021917,4]
[345996817,1734617450074,-500.0,0.00021917,4]
[345996818,1734617450083,-500.0,0.00021917,4]
[345996819,1734617450093,-500.0,0.00021917,4]
[345996820,1734617450102,-500.0,0.00021917,4]
[345996821,1734617450111,-503.10269894,0.00021917,4]
[345996822,1734617450121,-502.59421545,0.00021917,4]
[345996823,1734617450131,-500.0,0.00021917,4]
[345996824,1734617450141,-791.67,0.00021917,4]
[345996825,1734617450150,-500.0,0.00021917,4]
[345996826,1734617450160,-500.0,0.00021917,4]
[345996827,1734617450169,-445.70004838,0.00021917,4]
[345996828,1734617450179,-506.0289747,0.00021917,4]
[345996829,1734617450189,-500.0,0.00021917,4]
[345996830,1734617450199,-500.0,0.00021917,4]
[345996831,1734617450209,-505.40434706,0.00021917,4]
[345996832,1734617450218,-613.75,0.00021917,4]
[345996833,1734617450228,-500.0,0.00021917,4]
[345996834,1734617450237,-500.0,0.00021917,4]
[345996835,1734617450246,-500.0,0.00021917,4]
[345996836,1734617450259,-500.0,0.00021917,4]
[345996837,1734617450269,-509.83110143,0.00021917,4]
[345996838,1734617450278,-500.0,0.00021917,4]
[345996839,1734617450287,-864.97,0.00021917,4]
[345996840,1734617450297,-205.60615054,0.00021917,4]
[345996841,1734617450306,-500.0,0.00021917,4]
[345996842,1734617450315,-500.0,0.00021917,4]
[345996843,1734617450325,-505.402604,0.00021917,4]
[345996844,1734617450334,-500.0,0.00021917,4]
[345996845,1734617450343,-579.6,0.00021917,4]
[345996846,1734617450351,-500.0,0.00021917,4]
[345996847,1734617450359,-1346.17,0.00021917,4]
[345996848,1734617450368,-504.73034376,0.00021917,4]
[345996849,1734617450376,-500.0,0.00021917,4]
[345996850,1734617450384,-1600.66,0.00021917,4]
[345996851,1734617450392,-500.0,0.00021917,4]
[345996852,1734617450400,-504.15544264,0.00021917,4]
[345996853,1734617450408,-500.0,0.00021917,4]
[345996854,1734617450416,-500.0,0.00021917,4]
[345996855,1734617450424,-500.0,0.00021917,4]
[345996856,1734617450432,-500.0,0.00021917,4]
[345996857,1734617450441,-211.62349868,0.00021917,4]
[345996858,1734617450450,-737.69,0.00021917,4]
[345996859,1734617450459,-500.0,0.00021917,4]
[345996860,1734617450467,-501.59265235,0.00021917,4]
[345996861,1734617450476,-500.0,0.00021917,4]
[345996862,1734617450485,-623.17,0.00021917,4]
[345996863,1734617450494,-500.0,0.00021917,4]
[345996864,1734617450504,-993.92,0.00021917,4]
[345996865,1734617450515,-500.0,0.00021917,4]
[345996866,1734617450524,-500.0,0.00021917,4]
[345996867,1734617450533,-500.0,0.00021917,4]
[345996868,1734617450542,-500.0,0.00021917,4]
[345996869,1734617450551,-500.0,0.00021917,4]
[345996870,1734617450560,-500.0,0.00021917,4]
[345996871,1734617450570,-504.28496742,0.00021917,4]
[345996872,1734617450579,-1008.17,0.00021917,4]
[345996873,1734617450588,-182.16857535,0.00021917,4]
[345996874,1734617450596,-500.0,0.00021917,4]
[345996875,1734617450605,-556.19055001,0.00021917,4]
[345996876,1734617450614,-500.0,0.00021917,4]
[345996877,1734617450623,-335.81231185,0.00021917,4]
[345996878,1734617450633,-500.0,0.00021917,4]
[345996879,1734617450645,-500.0,0.00021917,4]
[345996880,1734617450654,-500.0,0.00021917,4]
[345996881,1734617450663,-500.0,0.00021917,4]
[345996882,1734617450672,-500.0,0.00021917,4]
[345996883,1734617450681,-500.76759746,0.00021917,4]
[345996884,1734617450690,-500.0,0.00021917,4]
[345996885,1734617450699,-500.46565408,0.00021917,4]
[345996886,1734617450708,-502.02575671,0.00021917,4]
[345996887,1734617450717,-500.0,0.00021917,4]
[345996888,1734617450726,-500.0,0.00021917,4]
[345996889,1734617450735,-648.31,0.00021917,4]
[345996890,1734617450745,-500.0,0.00021917,4]
[345996891,1734617450754,-582.85,0.00021917,4]
[345996892,1734617450765,-1308.67,0.00021917,4]
[345996893,1734617450774,-500.0,0.00021917,4]
[345996894,1734617450783,-500.0,0.00021917,4]
[345996895,1734617450793,-502.21086994,0.00021917,4]
[345996896,1734617450803,-502.13720917,0.00021917,4]
[345996897,1734617450812,-500.0,0.00021917,4]
[345996898,1734617450822,-500.0,0.00021917,4]
[345996899,1734617450831,-500.0,0.00021917,4]
[345996900,1734617450841,-503.78397556,0.00021917,4]
[345996901,1734617450850,-502.65700314,0.00021917,4]
[345996902,1734617450859,-503.20209987,0.00021917,4]
[345996903,1734617450868,-1725.8,0.00021917,4]
[345996904,1734617450877,-500.0,0.00021917,4]
[345996905,1734617450886,-500.0,0.00021917,4]
[345996906,1734617450895,-500.0,0.00021917,4]
[345996907,1734617450904,-875.18,0.00021917,4]
[345996908,1734617450913,-558.13415939,0.00021917,4]
[345996909,1734617450922,-500.70924674,0.00021917,4]
[345996910,1734617450931,-500.0,0.00021917,4]
[345996911,1734617450940,-500.0,0.00021917,4]
[345996912,1734617450949,-502.16599057,0.00021917,4]
[345996913,1734617450958,-500.0,0.00021917,4]
[345996914,1734617450967,-500.0,0.00021917,4]
[345996915,1734617450976,-503.64170356,0.00021917,4]
[345996916,1734617450986,-500.0,0.00021917,4]
[345996917,1734617450995,-500.0,0.00021917,4]
[345996918,1734617451004,-502.00213124,0.00021917,4]
[345996919,1734617451015,-4086.03,0.00021917,4]
[345996920,1734617451024,-500.0,0.00021917,4]
[345996921,1734617451033,-677.4,0.00021917,4]
[345996922,1734617451043,-500.0,0.00021917,4]
[345996923,1734617451052,-500.0,0.00021917,4]
[345996924,1734617451062,-1078.58,0.00021917,4]
[345996925,1734617451071,-500.0,0.00021917,4]
[345996926,1734617451081,-526.7,0.00021917,4]
[345996927,1734617451090,-988.71,0.00021917,4]
[345996928,1734617451099,-500.0,0.00021917,4]
[345996929,1734617451108,-500.90622177,0.00021917,4]
[345996930,1734617451118,-500.0,0.00021917,4]
[345996931,1734617451127,-500.0,0.00021917,4]
[345996932,1734617451136,-522.88,0.00021917,4]
[345996933,1734617451145,-500.0,0.00021917,4]
[345996934,1734617451155,-558.66,0.00021917,4]
[345996935,1734617451165,-3358.22,0.00021917,4]
[345996936,1734617451175,-500.0,0.00021917,4]
[345996937,1734617451184,-500.0,0.00021917,4]
[345996938,1734617451193,-500.0,0.00021917,4]
[345996939,1734617451202,-500.0,0.00021917,4]
[345996940,1734617451210,-586.25,0.00021917,4]
[345996941,1734617451219,-500.0,0.00021917,4]
[345996942,1734617451228,-506.8963555,0.00021917,4]
[345996943,1734617451237,-500.0,0.00021917,4]
[345996944,1734617451247,-502.44315098,0.00021917,4]
[345996945,1734617451258,-500.0,0.00021917,4]
[345996946,1734617451267,-500.0,0.00021917,4]
[345996947,1734617451276,-500.0,0.00021917,4]
[345996948,1734617451285,-500.0,0.00021917,4]
[345996949,1734617451295,-498.8813832,0.00021917,4]
[345996950,1734617451304,-565.57329878,0.00021917,2]
[345996951,1734617451313,-500.0,0.00021917,4]
[345996952,1734617451322,-500.0,0.00021917,4]
[345996953,1734617451331,-504.3268698,0.00021917,4]
[345996954,1734617451341,-1953.74,0.00021917,4]
[345996955,1734617451351,-607.06,0.00021917,4]
[345996956,1734617451363,-502.44307114,0.00021917,4]
[345996957,1734617451373,-500.0,0.00021917,4]
[345996958,1734617451382,-500.0,0.00021917,4]
[345996959,1734617451391,-501.83736975,0.00021917,4]
[345996960,1734617451401,-500.0,0.00021917,4]
[345996961,1734617451410,-500.0,0.00021917,4]
[345996962,1734617451420,-500.0,0.00021917,4]
[345996963,1734617451429,-500.0,0.00021917,4]
[345996964,1734617451438,-500.0,0.00021917,4]
[345996965,1734617451447,-521.80738534,0.00021917,4]
[345996966,1734617451457,-169.057285,0.00021917,4]
[345996967,1734617451466,-247.292797,0.00021917,4]
[345996968,1734617451475,-500.0,0.00021917,4]
[345996969,1734617451484,-500.0,0.00021917,2]
[345996970,1734617451494,-521.93,0.00021917,4]
[345996971,1734617451503,-500.0,0.00021917,4]
[345996972,1734617451515,-161.24484295,0.00021917,4]
[345996973,1734617451524,-899.33,0.00021917,4]
[345996974,1734617451535,-872.12,0.00021917,4]
[345996975,1734617451544,-500.0,0.00021917,4]
[345996976,1734617451554,-621.59924197,0.00021917,4]
[345996977,1734617451563,-500.0,0.00021917,4]
[345996978,1734617451573,-500.0,0.00021917,4]
[345996979,1734617451583,-500.0,0.00021917,4]
[345996980,1734617451592,-532.06,0.00021917,4]
[345996981,1734617451602,-1553.29,0.00021917,4]
[345996982,1734617451611,-1295.19,0.00021917,4]
[345996983,1734617451621,-500.0,0.00021917,4]
[345996984,1734617451630,-501.98160385,0.00021917,4]
[345996985,1734617451640,-500.0,0.00021917,4]
[345996986,1734617451649,-805.67,0.00021917,4]
[345996987,1734617451658,-500.0,0.00021917,4]
[345996988,1734617451667,-641.83238719,0.00021917,4]
[345996989,1734617451676,-500.0,0.00021917,4]
[345996990,1734617451686,-500.0,0.00021917,4]
[345996991,1734617451695,-500.0,0.00021917,4]
[345996992,1734617451705,-500.0,0.00021917,4]